{"text_format":"3","workbook":"xlsx","n_sheets":1,"sheets":["استعارة كُتب المكتبة"],"not_rendered":{"defined_names":4},"read":"whole","date_system":"1900"}

{"sheet":"استعارة كُتب المكتبة","index":0,"n_rows":9,"n_cols":8,"rows_kept":9,"merged":[[0,1,0,4],[0,5,0,6]]}
[null,"ورقة استعارة كُتب المكتبة",{"$nulls":3},"الأيام حتى المتأخرات ",null,10]
["المتأخرات","الطالب","عنوان البريد الإلكتروني لجهة الاتصال","هاتف جهة الاتصال","عنوان الكتاب","تاريخ الاستعارة","تاريخ الإرجاع","الأيام"]
[{"$f":"IFERROR(((الكتب[[#This Row],[تاريخ الاستعارة]]+DayAllowance)<TODAY())*(LEN(الكتب[[#This Row],[تاريخ الإرجاع]])=0)*(LEN(الكتب[[#This Row],[تاريخ الاستعارة]])>0),0)","v":0},"عائشة اللامي","someone@example.com","555-0100","منزل صغير في البرية",{"$f":"DATE(YEAR(TODAY()),1,14)","v":"2018-01-14"},{"$f":"DATE(YEAR(TODAY()),1,21)","v":"2018-01-21"},{"$f":"IFERROR(IF(الكتب[[#This Row],[تاريخ الإرجاع]]=\"\",IF(الكتب[[#This Row],[تاريخ الاستعارة]]<>\"\", TODAY()-الكتب[[#This Row],[تاريخ الاستعارة]],\"\"),الكتب[[#This Row],[تاريخ الإرجاع]]-الكتب[[#This Row],[تاريخ الاستعارة]]), \"\")","v":7}]
[{"$f":"IFERROR(((الكتب[[#This Row],[تاريخ الاستعارة]]+DayAllowance)<TODAY())*(LEN(الكتب[[#This Row],[تاريخ الإرجاع]])=0)*(LEN(الكتب[[#This Row],[تاريخ الاستعارة]])>0),0)","v":0},"امتياز سلمان","someone@example.com","555-0101","موقع ماجدة على الويب",{"$f":"DATE(YEAR(TODAY()),2,15)","v":"2018-02-15"},{"$f":"DATE(YEAR(TODAY()),2,18)","v":"2018-02-18"},{"$f":"IFERROR(IF(الكتب[[#This Row],[تاريخ الإرجاع]]=\"\",IF(الكتب[[#This Row],[تاريخ الاستعارة]]<>\"\", TODAY()-الكتب[[#This Row],[تاريخ الاستعارة]],\"\"),الكتب[[#This Row],[تاريخ الإرجاع]]-الكتب[[#This Row],[تاريخ الاستعارة]]), \"\")","v":3}]
[{"$f":"IFERROR(((الكتب[[#This Row],[تاريخ الاستعارة]]+DayAllowance)<TODAY())*(LEN(الكتب[[#This Row],[تاريخ الإرجاع]])=0)*(LEN(الكتب[[#This Row],[تاريخ الاستعارة]])>0),0)","v":0},"مختار معلوف","someone@example.com","555-0102","صندوق دفع رسوم الانتظار الوهمي",{"$f":"DATE(YEAR(TODAY()),2,17)","v":"2018-02-17"},{"$f":"DATE(YEAR(TODAY()),2,22)","v":"2018-02-22"},{"$f":"IFERROR(IF(الكتب[[#This Row],[تاريخ الإرجاع]]=\"\",IF(الكتب[[#This Row],[تاريخ الاستعارة]]<>\"\", TODAY()-الكتب[[#This Row],[تاريخ الاستعارة]],\"\"),الكتب[[#This Row],[تاريخ الإرجاع]]-الكتب[[#This Row],[تاريخ الاستعارة]]), \"\")","v":5}]
[{"$f":"IFERROR(((الكتب[[#This Row],[تاريخ الاستعارة]]+DayAllowance)<TODAY())*(LEN(الكتب[[#This Row],[تاريخ الإرجاع]])=0)*(LEN(الكتب[[#This Row],[تاريخ الاستعارة]])>0),0)","v":0},"سلام بيطار","someone@example.com","555-0103","السيدة فريسبي وكتاب Rats of Nimh",{"$f":"DATE(YEAR(TODAY()),2,17)","v":"2018-02-17"},{"$f":"DATE(YEAR(TODAY()),2,25)","v":"2018-02-25"},{"$f":"IFERROR(IF(الكتب[[#This Row],[تاريخ الإرجاع]]=\"\",IF(الكتب[[#This Row],[تاريخ الاستعارة]]<>\"\", TODAY()-الكتب[[#This Row],[تاريخ الاستعارة]],\"\"),الكتب[[#This Row],[تاريخ الإرجاع]]-الكتب[[#This Row],[تاريخ الاستعارة]]), \"\")","v":8}]
[{"$f":"IFERROR(((الكتب[[#This Row],[تاريخ الاستعارة]]+DayAllowance)<TODAY())*(LEN(الكتب[[#This Row],[تاريخ الإرجاع]])=0)*(LEN(الكتب[[#This Row],[تاريخ الاستعارة]])>0),0)","v":0},"لوسين حمصي","someone@example.com","555-0104","ماتيلدا",{"$f":"DATE(YEAR(TODAY()),2,18)","v":"2018-02-18"},{"$f":"DATE(YEAR(TODAY()),2,28)","v":"2018-02-28"},{"$f":"IFERROR(IF(الكتب[[#This Row],[تاريخ الإرجاع]]=\"\",IF(الكتب[[#This Row],[تاريخ الاستعارة]]<>\"\", TODAY()-الكتب[[#This Row],[تاريخ الاستعارة]],\"\"),الكتب[[#This Row],[تاريخ الإرجاع]]-الكتب[[#This Row],[تاريخ الاستعارة]]), \"\")","v":10}]
[{"$f":"IFERROR(((الكتب[[#This Row],[تاريخ الاستعارة]]+DayAllowance)<TODAY())*(LEN(الكتب[[#This Row],[تاريخ الإرجاع]])=0)*(LEN(الكتب[[#This Row],[تاريخ الاستعارة]])>0),0)","v":1},"مهى كبارة","someone@example.com","555-0105","سجلات نارنيا",{"$f":"DATE(YEAR(TODAY()),1,23)","v":"2018-01-23"},null,{"$f":"IFERROR(IF(الكتب[[#This Row],[تاريخ الإرجاع]]=\"\",IF(الكتب[[#This Row],[تاريخ الاستعارة]]<>\"\", TODAY()-الكتب[[#This Row],[تاريخ الاستعارة]],\"\"),الكتب[[#This Row],[تاريخ الإرجاع]]-الكتب[[#This Row],[تاريخ الاستعارة]]), \"\")","v":163}]
[{"$f":"IFERROR(((الكتب[[#This Row],[تاريخ الاستعارة]]+DayAllowance)<TODAY())*(LEN(الكتب[[#This Row],[تاريخ الإرجاع]])=0)*(LEN(الكتب[[#This Row],[تاريخ الاستعارة]])>0),0)","v":0},"مايشا بشارة","someone@example.com","555-0106","The Witch of Blackbird Pond",{"$f":"TODAY()","v":"2018-07-05"},null,{"$f":"IFERROR(IF(الكتب[[#This Row],[تاريخ الإرجاع]]=\"\",IF(الكتب[[#This Row],[تاريخ الاستعارة]]<>\"\", TODAY()-الكتب[[#This Row],[تاريخ الاستعارة]],\"\"),الكتب[[#This Row],[تاريخ الإرجاع]]-الكتب[[#This Row],[تاريخ الاستعارة]]), \"\")","v":0}]